[Event "*** Titled Tuesday Blitz"]
[Site "Chess.com"]
[Date "2021.03.30"]
[Round "5"]
[White "steka121"]
[Black "manitodeplomo"]
[Result "1-0"]
[WhiteElo "2399"]
[BlackElo "2567"]
[TimeControl "180+1"]
[EndTime "10:55:24 PDT"]
[Termination "steka121 won on time"]

1. e4 {[%clk 0:02:58.5]} 1... e6 {[%clk 0:02:47.8]} 2. d4 {[%clk 0:02:58.3]}
2... d5 {[%clk 0:02:47.2]} 3. Nc3 {[%clk 0:02:58.4]} 3... Bb4 {[%clk 0:02:46.1]}
4. exd5 {[%clk 0:02:58.7]} 4... Qxd5 {[%clk 0:02:43.6]} 5. Nf3 {[%clk
0:02:58.4]} 5... Nf6 {[%clk 0:02:40.7]} 6. Bd3 {[%clk 0:02:58.1]} 6... O-O
{[%clk 0:02:39.8]} 7. O-O {[%clk 0:02:57.5]} 7... Bxc3 {[%clk 0:02:40.1]} 8.
bxc3 {[%clk 0:02:57.7]} 8... b6 {[%clk 0:02:40.2]} 9. c4 {[%clk 0:02:46.4]} 9...
Qd6 {[%clk 0:02:37]} 10. Ne5 {[%clk 0:02:36.8]} 10... Rd8 {[%clk 0:02:34]} 11.
c3 {[%clk 0:02:31.8]} 11... Bb7 {[%clk 0:02:31]} 12. Bf4 {[%clk 0:02:28.8]}
12... Qe7 {[%clk 0:02:02]} 13. Qe2 {[%clk 0:02:11.9]} 13... c5 {[%clk
0:01:58.4]} 14. Rad1 {[%clk 0:02:11.8]} 14... h6 {[%clk 0:01:40.1]} 15. Rfe1
{[%clk 0:02:08.6]} 15... Qf8 {[%clk 0:01:23.2]} 16. Bc2 {[%clk 0:01:51]} 16...
cxd4 {[%clk 0:01:12.6]} 17. cxd4 {[%clk 0:01:50.7]} 17... Nc6 {[%clk 0:01:13]}
18. Nxc6 {[%clk 0:01:35.2]} 18... Bxc6 {[%clk 0:01:13.9]} 19. Be5 {[%clk
0:01:33]} 19... Nd7 {[%clk 0:00:37.5]} 20. Qd3 {[%clk 0:01:30]} 20... f5 {[%clk
0:00:34.8]} 21. Qg3 {[%clk 0:01:25.3]} 21... Nxe5 {[%clk 0:00:31]} 22. Qxe5
{[%clk 0:01:25.4]} 22... Re8 {[%clk 0:00:22.5]} 23. Bb3 {[%clk 0:01:19.5]} 23...
Kh8 {[%clk 0:00:20.6]} 24. c5 {[%clk 0:01:12]} 24... bxc5 {[%clk 0:00:19]} 25.
dxc5 {[%clk 0:01:11.8]} 25... a5 {[%clk 0:00:07.6]} 26. Rd6 {[%clk 0:01:06.5]}
26... Be4 {[%clk 0:00:05.3]} 27. f3 {[%clk 0:01:00.5]} 27... Bd5 {[%clk
0:00:04.4]} 28. Bxd5 {[%clk 0:00:36]} 28... exd5 {[%clk 0:00:05.3]} 29. Rxh6+
{[%clk 0:00:22.6]} 29... Kg8 {[%clk 0:00:05.6]} 30. Qxd5+ {[%clk 0:00:22.4]}
30... Qf7 {[%clk 0:00:06.1]} 31. Rxe8+ {[%clk 0:00:20.1]} 1-0

[Event "*** Titled Tuesday Blitz"]
[Site "Chess.com"]
[Date "2021.03.30"]
[Round "5"]
[White "RaphCamora"]
[Black "Gudmundur_Kjartansson"]
[Result "0-1"]
[WhiteElo "2405"]
[BlackElo "2555"]
[TimeControl "180+1"]
[EndTime "10:55:24 PDT"]
[Termination "Gudmundur_Kjartansson won by resignation"]

1. e4 {[%clk 0:03:00.9]} 1... e6 {[%clk 0:02:57]} 2. b3 {[%clk 0:02:59.7]} 2...
d5 {[%clk 0:02:56.4]} 3. Bb2 {[%clk 0:02:59.6]} 3... dxe4 {[%clk 0:02:55.1]} 4.
Nc3 {[%clk 0:02:59]} 4... Nf6 {[%clk 0:02:53.9]} 5. Qe2 {[%clk 0:02:57.2]} 5...
b6 {[%clk 0:02:47.2]} 6. Nxe4 {[%clk 0:02:53.6]} 6... Bb7 {[%clk 0:02:38.7]} 7.
Nxf6+ {[%clk 0:02:53.3]} 7... gxf6 {[%clk 0:02:38.7]} 8. O-O-O {[%clk
0:02:53.7]} 8... Nd7 {[%clk 0:02:33.2]} 9. f4 {[%clk 0:02:53.2]} 9... Bd6 {[%clk
0:02:30.8]} 10. f5 {[%clk 0:02:49.7]} 10... Qe7 {[%clk 0:02:30.4]} 11. fxe6
{[%clk 0:02:47.9]} 11... fxe6 {[%clk 0:02:29.9]} 12. Nf3 {[%clk 0:02:41.3]}
12... O-O-O {[%clk 0:02:28.1]} 13. g3 {[%clk 0:02:33.9]} 13... Ba3 {[%clk
0:02:17.2]} 14. Bg2 {[%clk 0:02:32.9]} 14... Bxb2+ {[%clk 0:02:16]} 15. Kxb2
{[%clk 0:02:33.8]} 15... e5 {[%clk 0:01:52.9]} 16. Rhf1 {[%clk 0:02:28]} 16...
Nc5 {[%clk 0:01:45.4]} 17. d3 {[%clk 0:01:53.2]} 17... a5 {[%clk 0:01:41.6]} 18.
Nh4 {[%clk 0:01:51.5]} 18... a4 {[%clk 0:01:31.6]} 19. Nf5 {[%clk 0:01:51.1]}
19... Qd7 {[%clk 0:01:27.6]} 20. Bxb7+ {[%clk 0:01:48.2]} 20... Kxb7 {[%clk
0:01:27.5]} 21. d4 {[%clk 0:01:44.8]} 21... exd4 {[%clk 0:01:16.5]} 22. Rxd4
{[%clk 0:01:43.7]} 22... Qc6 {[%clk 0:01:15.7]} 23. Rfd1 {[%clk 0:01:34.7]}
23... Ra8 {[%clk 0:00:51.3]} 24. b4 {[%clk 0:01:29]} 24... a3+ {[%clk
0:00:49.6]} 25. Ka1 {[%clk 0:01:24.5]} 25... Na4 {[%clk 0:00:31.3]} 26. Rc4
{[%clk 0:00:56.9]} 26... Rhe8 {[%clk 0:00:21.2]} 27. Qd3 {[%clk 0:00:41]} 27...
Nb2 {[%clk 0:00:20.8]} 28. Rxc6 {[%clk 0:00:32.9]} 28... Nxd3 {[%clk 0:00:20.6]}
29. Rxf6 {[%clk 0:00:30.2]} 29... Nxb4 {[%clk 0:00:20.8]} 30. Kb1 {[%clk
0:00:25.1]} 30... Ra5 {[%clk 0:00:19.5]} 31. Rf7 {[%clk 0:00:24.1]} 31... Kb8
{[%clk 0:00:19.8]} 32. Ne7 {[%clk 0:00:20.6]} 32... Rb5 {[%clk 0:00:19.2]} 33.
Kc1 {[%clk 0:00:20.9]} 33... Nxa2+ {[%clk 0:00:19]} 34. Kd2 {[%clk 0:00:21.3]}
34... Rd8+ {[%clk 0:00:19.4]} 35. Ke1 {[%clk 0:00:21.7]} 35... Rxd1+ {[%clk
0:00:19.5]} 36. Kxd1 {[%clk 0:00:22.6]} 36... Nc3+ {[%clk 0:00:19.8]} 37. Kd2
{[%clk 0:00:23.2]} 37... a2 {[%clk 0:00:20.2]} 38. Nc6+ {[%clk 0:00:17.5]} 38...
Kb7 {[%clk 0:00:20.5]} 39. Nd8+ {[%clk 0:00:17.7]} 39... Kc8 {[%clk 0:00:20.8]}
40. Ne6 {[%clk 0:00:17.2]} 40... a1=Q {[%clk 0:00:20.5]} 0-1

[Event "*** Titled Tuesday Blitz"]
[Site "Chess.com"]
[Date "2021.03.30"]
[Round "5"]
[White "Redzishchess"]
[Black "novocane"]
[Result "1-0"]
[WhiteElo "2370"]
[BlackElo "2221"]
[TimeControl "180+1"]
[EndTime "10:55:24 PDT"]
[Termination "Redzishchess won on time"]

1. e4 {[%clk 0:03:00.9]} 1... c5 {[%clk 0:02:57]} 2. Nf3 {[%clk 0:03:00.5]} 2...
Nc6 {[%clk 0:02:56.8]} 3. Bb5 {[%clk 0:02:58.4]} 3... Nf6 {[%clk 0:02:55.3]} 4.
e5 {[%clk 0:02:56.8]} 4... Nd5 {[%clk 0:02:54.7]} 5. Nc3 {[%clk 0:02:56.8]} 5...
Nc7 {[%clk 0:02:47.5]} 6. Bxc6 {[%clk 0:02:55.6]} 6... dxc6 {[%clk 0:02:45.1]}
7. O-O {[%clk 0:02:55.9]} 7... g6 {[%clk 0:02:36.9]} 8. Re1 {[%clk 0:02:55.3]}
8... Bg7 {[%clk 0:02:36.1]} 9. Ne4 {[%clk 0:02:55.7]} 9... Ne6 {[%clk
0:02:33.5]} 10. d3 {[%clk 0:02:46.3]} 10... O-O {[%clk 0:02:33.2]} 11. Be3
{[%clk 0:02:06]} 11... b6 {[%clk 0:02:32.4]} 12. Qd2 {[%clk 0:02:06.3]} 12...
Re8 {[%clk 0:02:25.6]} 13. Bh6 {[%clk 0:02:05.2]} 13... Bh8 {[%clk 0:02:25.1]}
14. h4 {[%clk 0:02:04.2]} 14... Qc7 {[%clk 0:02:22.5]} 15. h5 {[%clk 0:01:59.6]}
15... Bb7 {[%clk 0:01:30.7]} 16. Neg5 {[%clk 0:01:46]} 16... Nxg5 {[%clk
0:01:24.2]} 17. Qxg5 {[%clk 0:01:23.9]} 17... e6 {[%clk 0:01:07.5]} 18. Re4
{[%clk 0:01:23.9]} 18... c4 {[%clk 0:01:00.3]} 19. Nh4 {[%clk 0:00:28.8]} 19...
Qe7 {[%clk 0:00:45.3]} 20. Qg3 {[%clk 0:00:24]} 20... Bg7 {[%clk 0:00:18.9]} 21.
Bxg7 {[%clk 0:00:15.1]} 21... Kxg7 {[%clk 0:00:19.8]} 22. Rxc4 {[%clk
0:00:15.7]} 22... c5 {[%clk 0:00:19.9]} 23. Rg4 {[%clk 0:00:15.7]} 23... b5
{[%clk 0:00:12.9]} 24. hxg6 {[%clk 0:00:10.9]} 24... fxg6 {[%clk 0:00:12.2]} 25.
Nxg6 {[%clk 0:00:10.5]} 25... hxg6 {[%clk 0:00:10.7]} 26. Rxg6+ {[%clk
0:00:11.4]} 26... Kh7 {[%clk 0:00:09.5]} 27. Qg4 {[%clk 0:00:10]} 1-0

[Event "*** Titled Tuesday Blitz"]
[Site "Chess.com"]
[Date "2021.03.30"]
[Round "5"]
[White "Beca95"]
[Black "Keks2017"]
[Result "1-0"]
[WhiteElo "2891"]
[BlackElo "2480"]
[TimeControl "180+1"]
[EndTime "10:55:25 PDT"]
[Termination "Beca95 won by resignation"]

1. d4 {[%clk 0:03:00.9]} 1... d6 {[%clk 0:02:59.6]} 2. e4 {[%clk 0:03:00.1]}
2... Nf6 {[%clk 0:02:59.3]} 3. Nc3 {[%clk 0:02:59.8]} 3... g6 {[%clk 0:02:59]}
4. Nf3 {[%clk 0:03:00]} 4... Bg7 {[%clk 0:02:58.8]} 5. Be3 {[%clk 0:03:00.7]}
5... O-O {[%clk 0:02:56.8]} 6. Qd2 {[%clk 0:03:01]} 6... a6 {[%clk 0:02:56.9]}
7. Bh6 {[%clk 0:03:00.9]} 7... b5 {[%clk 0:02:56.6]} 8. Bd3 {[%clk 0:02:58.6]}
8... Nc6 {[%clk 0:02:56.4]} 9. e5 {[%clk 0:02:54.1]} 9... dxe5 {[%clk
0:02:48.7]} 10. dxe5 {[%clk 0:02:53.9]} 10... Ng4 {[%clk 0:02:44.6]} 11. Bxg7
{[%clk 0:02:50.5]} 11... Kxg7 {[%clk 0:02:44.4]} 12. Qf4 {[%clk 0:02:49.2]}
12... Ngxe5 {[%clk 0:02:02.5]} 13. Nxe5 {[%clk 0:02:42.6]} 13... Qd6 {[%clk
0:02:02.1]} 14. Nxg6 {[%clk 0:02:13.2]} 14... hxg6 {[%clk 0:02:00.9]} 15. Qe3
{[%clk 0:02:12.8]} 15... Ne5 {[%clk 0:01:38.9]} 16. Be2 {[%clk 0:02:10.1]} 16...
Bb7 {[%clk 0:01:32.2]} 17. Rd1 {[%clk 0:01:48.6]} 17... Qe6 {[%clk 0:01:28.1]}
18. f4 {[%clk 0:01:48.4]} 18... Nc4 {[%clk 0:01:23]} 19. Qxe6 {[%clk 0:01:47.3]}
19... fxe6 {[%clk 0:01:22.4]} 20. Bxc4 {[%clk 0:01:47.3]} 20... bxc4 {[%clk
0:01:21.8]} 21. O-O {[%clk 0:01:45.6]} 21... Rad8 {[%clk 0:01:15.4]} 22. Rxd8
{[%clk 0:01:44.7]} 22... Rxd8 {[%clk 0:01:14.8]} 23. Rd1 {[%clk 0:01:44.8]}
23... Rd6 {[%clk 0:01:12.8]} 24. Kf2 {[%clk 0:01:44]} 24... Kf6 {[%clk
0:01:12.8]} 25. g3 {[%clk 0:01:43.8]} 25... e5 {[%clk 0:01:02.4]} 26. fxe5+
{[%clk 0:01:40.2]} 26... Kxe5 {[%clk 0:01:02.2]} 27. Ke3 {[%clk 0:01:40.5]}
27... g5 {[%clk 0:00:57.9]} 28. Rf1 {[%clk 0:01:38.8]} 28... Rh6 {[%clk
0:00:53.6]} 29. Rf2 {[%clk 0:01:38.3]} 29... Bc6 {[%clk 0:00:51.4]} 30. Ne2
{[%clk 0:01:38]} 30... Bd5 {[%clk 0:00:47.8]} 31. Nd4 {[%clk 0:01:36]} 31... e6
{[%clk 0:00:44.6]} 32. Ne2 {[%clk 0:01:21.2]} 32... Rh8 {[%clk 0:00:41.6]} 33.
Nc3 {[%clk 0:00:59.7]} 33... Rb8 {[%clk 0:00:39.4]} 34. b3 {[%clk 0:00:56.1]}
34... cxb3 {[%clk 0:00:38.5]} 35. cxb3 {[%clk 0:00:53.4]} 35... Rh8 {[%clk
0:00:33]} 36. Na4 {[%clk 0:00:51.7]} 36... Kd6 {[%clk 0:00:31.2]} 37. Nb2 {[%clk
0:00:46.3]} 37... a5 {[%clk 0:00:26.4]} 38. Rd2 {[%clk 0:00:45.2]} 38... Ke5
{[%clk 0:00:22.1]} 39. Rc2 {[%clk 0:00:43.5]} 39... Rh7 {[%clk 0:00:21.2]} 40.
Nd3+ {[%clk 0:00:43.1]} 40... Kf6 {[%clk 0:00:20.7]} 41. Kd4 {[%clk 0:00:42.5]}
41... Kf5 {[%clk 0:00:18.9]} 42. Ne5 {[%clk 0:00:41.7]} 42... g4 {[%clk
0:00:14.2]} 43. Rf2+ {[%clk 0:00:40.6]} 43... Kg5 {[%clk 0:00:14.3]} 44. Kc5
{[%clk 0:00:38.3]} 44... Rh8 {[%clk 0:00:12.3]} 45. Nf7+ {[%clk 0:00:37.4]} 1-0

[Event "*** Titled Tuesday Blitz"]
[Site "Chess.com"]
[Date "2021.03.30"]
[Round "5"]
[White "Magila31"]
[Black "dachessmandan"]
[Result "0-1"]
[WhiteElo "2286"]
[BlackElo "2495"]
[TimeControl "180+1"]
[EndTime "10:55:25 PDT"]
[Termination "dachessmandan won by resignation"]

1. d4 {[%clk 0:02:59.1]} 1... Nf6 {[%clk 0:02:58.7]} 2. c4 {[%clk 0:02:58.2]}
2... e6 {[%clk 0:02:56.6]} 3. Nf3 {[%clk 0:02:54.2]} 3... d5 {[%clk 0:02:53.6]}
4. Nc3 {[%clk 0:02:51.9]} 4... Bb4 {[%clk 0:02:52.3]} 5. e3 {[%clk 0:02:49]}
5... O-O {[%clk 0:02:51.9]} 6. Bd2 {[%clk 0:02:42.5]} 6... c5 {[%clk 0:02:47.4]}
7. cxd5 {[%clk 0:02:39.1]} 7... exd5 {[%clk 0:02:35.5]} 8. Be2 {[%clk
0:02:36.7]} 8... Nc6 {[%clk 0:02:34.6]} 9. dxc5 {[%clk 0:02:33.3]} 9... d4
{[%clk 0:02:23.9]} 10. exd4 {[%clk 0:02:30.7]} 10... Nxd4 {[%clk 0:02:18.3]} 11.
Nxd4 {[%clk 0:02:28.3]} 11... Qxd4 {[%clk 0:02:19.2]} 12. O-O {[%clk 0:02:26.2]}
12... Bxc5 {[%clk 0:02:08.8]} 13. Be3 {[%clk 0:02:09.7]} 13... Qxd1 {[%clk
0:02:07.7]} 14. Raxd1 {[%clk 0:02:02.1]} 14... Bxe3 {[%clk 0:02:07.4]} 15. fxe3
{[%clk 0:02:02.4]} 15... Be6 {[%clk 0:01:59]} 16. Bf3 {[%clk 0:01:57.9]} 16...
Rab8 {[%clk 0:01:54.1]} 17. e4 {[%clk 0:01:45.8]} 17... Nd7 {[%clk 0:01:38.9]}
18. b3 {[%clk 0:01:41]} 18... Ne5 {[%clk 0:01:36.7]} 19. Nd5 {[%clk 0:01:40.5]}
19... Rfd8 {[%clk 0:01:25.5]} 20. Kf2 {[%clk 0:01:37.5]} 20... Kf8 {[%clk
0:01:11.7]} 21. Ke3 {[%clk 0:01:33]} 21... Bxd5 {[%clk 0:01:06]} 22. Rxd5 {[%clk
0:01:27.8]} 22... Rxd5 {[%clk 0:01:05.7]} 23. exd5 {[%clk 0:01:28.1]} 23... Ke7
{[%clk 0:01:04.3]} 24. Kd4 {[%clk 0:01:18.9]} 24... Kd6 {[%clk 0:01:02.7]} 25.
Rc1 {[%clk 0:01:17.2]} 25... Re8 {[%clk 0:00:56.5]} 26. Rc3 {[%clk 0:01:05.9]}
26... f6 {[%clk 0:00:52.6]} 27. b4 {[%clk 0:01:05.1]} 27... Nxf3+ {[%clk
0:00:31.8]} 28. Rxf3 {[%clk 0:01:03.6]} 28... Re5 {[%clk 0:00:31.7]} 29. Rg3
{[%clk 0:00:56.9]} 29... g6 {[%clk 0:00:29.4]} 30. Rh3 {[%clk 0:00:56]} 30... h5
{[%clk 0:00:26.5]} 31. Rg3 {[%clk 0:00:52.4]} 31... Rxd5+ {[%clk 0:00:26.5]} 32.
Kc4 {[%clk 0:00:52.1]} 32... g5 {[%clk 0:00:25.8]} 33. Rh3 {[%clk 0:00:49]}
33... g4 {[%clk 0:00:24.6]} 34. Re3 {[%clk 0:00:46.4]} 34... Re5 {[%clk
0:00:24.2]} 35. Rd3+ {[%clk 0:00:45.9]} 35... Ke7 {[%clk 0:00:24.4]} 36. Rd2
{[%clk 0:00:45.5]} 36... f5 {[%clk 0:00:23.4]} 37. a4 {[%clk 0:00:41.9]} 37...
f4 {[%clk 0:00:23.6]} 38. Kd4 {[%clk 0:00:40.4]} 38... Kf6 {[%clk 0:00:20.3]}
39. Rf2 {[%clk 0:00:38.6]} 39... Kf5 {[%clk 0:00:20.2]} 40. b5 {[%clk
0:00:36.1]} 40... Re4+ {[%clk 0:00:20.3]} 41. Kc5 {[%clk 0:00:34.3]} 41... Rxa4
{[%clk 0:00:20.9]} 42. Rd2 {[%clk 0:00:34.1]} 42... f3 {[%clk 0:00:20.3]} 43.
gxf3 {[%clk 0:00:32.1]} 43... gxf3 {[%clk 0:00:21.2]} 44. Rd7 {[%clk 0:00:31]}
44... Kg4 {[%clk 0:00:19.9]} 45. Rxb7 {[%clk 0:00:29.4]} 45... f2 {[%clk
0:00:19.6]} 46. Rg7+ {[%clk 0:00:28.1]} 46... Kf3 {[%clk 0:00:19.3]} 0-1

[Event "*** Titled Tuesday Blitz"]
[Site "Chess.com"]
[Date "2021.03.30"]
[Round "5"]
[White "HanSchut"]
[Black "profofchess"]
[Result "0-1"]
[WhiteElo "2243"]
[BlackElo "2448"]
[TimeControl "180+1"]
[EndTime "10:55:25 PDT"]
[Termination "profofchess won on time"]

1. e4 {[%clk 0:03:00.9]} 1... e6 {[%clk 0:03:00.2]} 2. d4 {[%clk 0:03:00.2]}
2... d5 {[%clk 0:03:00.9]} 3. Nc3 {[%clk 0:03:00.2]} 3... Bb4 {[%clk 0:03:00.5]}
4. e5 {[%clk 0:02:59.2]} 4... Bf8 {[%clk 0:03:00.2]} 5. f4 {[%clk 0:02:53.3]}
5... c5 {[%clk 0:02:59]} 6. Nce2 {[%clk 0:02:51.2]} 6... cxd4 {[%clk 0:02:51.5]}
7. Nxd4 {[%clk 0:02:51.3]} 7... Nc6 {[%clk 0:02:51.3]} 8. Ngf3 {[%clk
0:02:51.6]} 8... Qb6 {[%clk 0:02:46.5]} 9. c3 {[%clk 0:02:46.5]} 9... Bd7 {[%clk
0:02:45.5]} 10. Rb1 {[%clk 0:02:34.7]} 10... Nxd4 {[%clk 0:02:23.7]} 11. Nxd4
{[%clk 0:02:23.6]} 11... Ne7 {[%clk 0:02:11.8]} 12. Be3 {[%clk 0:02:14.4]} 12...
Qa5 {[%clk 0:02:11.8]} 13. a3 {[%clk 0:02:01]} 13... Nf5 {[%clk 0:01:33.1]} 14.
Nxf5 {[%clk 0:01:54.9]} 14... exf5 {[%clk 0:01:34]} 15. Be2 {[%clk 0:01:23.3]}
15... Rc8 {[%clk 0:01:32.7]} 16. O-O {[%clk 0:01:18.4]} 16... Bc5 {[%clk
0:01:31.9]} 17. Qd2 {[%clk 0:01:09.7]} 17... O-O {[%clk 0:01:26.7]} 18. Bf3
{[%clk 0:00:59.3]} 18... Ba4 {[%clk 0:00:37.3]} 19. Kh1 {[%clk 0:00:29.5]} 19...
Bxe3 {[%clk 0:00:36.1]} 20. Qxe3 {[%clk 0:00:30.3]} 20... Bc2 {[%clk 0:00:34.3]}
21. Rbc1 {[%clk 0:00:23.9]} 21... Be4 {[%clk 0:00:32.5]} 22. Bxe4 {[%clk
0:00:20.1]} 22... dxe4 {[%clk 0:00:30.5]} 23. Rcd1 {[%clk 0:00:20.5]} 23... Qb5
{[%clk 0:00:29.6]} 24. Rf2 {[%clk 0:00:15.7]} 24... Rfd8 {[%clk 0:00:28.3]} 25.
Rfd2 {[%clk 0:00:16.2]} 25... Rxd2 {[%clk 0:00:23.3]} 26. Qxd2 {[%clk
0:00:14.2]} 26... h6 {[%clk 0:00:23.2]} 27. h3 {[%clk 0:00:13]} 27... e3 {[%clk
0:00:21.1]} 28. Qe1 {[%clk 0:00:07.8]} 28... Qxb2 {[%clk 0:00:20.1]} 29. Qxe3
{[%clk 0:00:08.3]} 29... Rxc3 {[%clk 0:00:17.8]} 30. Rd8+ {[%clk 0:00:07]} 30...
Kh7 {[%clk 0:00:18]} 31. Qxa7 {[%clk 0:00:03.5]} 31... Rc1+ {[%clk 0:00:17.8]}
32. Kh2 {[%clk 0:00:02.9]} 32... Qb1 {[%clk 0:00:17.9]} 33. Qf2 {[%clk
0:00:01.9]} 33... Rh1+ {[%clk 0:00:15.5]} 34. Kg3 {[%clk 0:00:02.4]} 34... Rf1
{[%clk 0:00:13.6]} 0-1

[Event "*** Titled Tuesday Blitz"]
[Site "Chess.com"]
[Date "2021.03.30"]
[Round "5"]
[White "Spriteball"]
[Black "Chessbard1972"]
[Result "1-0"]
[WhiteElo "2382"]
[BlackElo "2231"]
[TimeControl "180+1"]
[EndTime "10:55:26 PDT"]
[Termination "Spriteball won by checkmate"]

1. d4 {[%clk 0:03:00.9]} 1... d5 {[%clk 0:02:54.3]} 2. c4 {[%clk 0:03:00.4]}
2... e6 {[%clk 0:02:51.9]} 3. Nf3 {[%clk 0:02:59]} 3... c5 {[%clk 0:02:48.8]} 4.
g3 {[%clk 0:02:45.6]} 4... Nc6 {[%clk 0:02:47.5]} 5. Bg2 {[%clk 0:02:40.9]} 5...
Nf6 {[%clk 0:02:45.9]} 6. O-O {[%clk 0:02:39.4]} 6... h6 {[%clk 0:02:43.7]} 7.
Nc3 {[%clk 0:02:35.9]} 7... Be7 {[%clk 0:02:42.6]} 8. dxc5 {[%clk 0:02:21]} 8...
Bxc5 {[%clk 0:02:41.7]} 9. Qc2 {[%clk 0:02:20.6]} 9... O-O {[%clk 0:02:38.5]}
10. Rd1 {[%clk 0:02:10.2]} 10... Qe7 {[%clk 0:02:26.7]} 11. cxd5 {[%clk
0:02:05.3]} 11... exd5 {[%clk 0:02:25.7]} 12. Nxd5 {[%clk 0:02:01.4]} 12... Nxd5
{[%clk 0:02:23]} 13. Rxd5 {[%clk 0:02:02.3]} 13... Bxf2+ {[%clk 0:02:14.8]} 14.
Kxf2 {[%clk 0:01:54.5]} 14... Nb4 {[%clk 0:02:14.3]} 15. Qb3 {[%clk 0:01:46.5]}
15... Be6 {[%clk 0:02:09.6]} 16. e4 {[%clk 0:01:41.2]} 16... f5 {[%clk
0:02:01.8]} 17. Re5 {[%clk 0:01:20.2]} 17... Bxb3 {[%clk 0:01:52.2]} 18. Rxe7
{[%clk 0:01:18.7]} 18... Nc2 {[%clk 0:01:35.4]} 19. axb3 {[%clk 0:01:05.5]}
19... Nxa1 {[%clk 0:01:35.3]} 20. e5 {[%clk 0:00:54.5]} 20... Nxb3 {[%clk
0:01:33.1]} 21. Be3 {[%clk 0:00:52]} 21... Rac8 {[%clk 0:01:28.2]} 22. Ne1
{[%clk 0:00:42.4]} 22... Kh7 {[%clk 0:01:18]} 23. Rxb7 {[%clk 0:00:39.8]} 23...
Nc5 {[%clk 0:01:11.8]} 24. Rxa7 {[%clk 0:00:39.3]} 24... Ne4+ {[%clk 0:01:10.4]}
25. Kg1 {[%clk 0:00:39.3]} 25... Rfe8 {[%clk 0:01:06.4]} 26. Nd3 {[%clk
0:00:21.3]} 26... Ra8 {[%clk 0:01:01.8]} 27. Rxa8 {[%clk 0:00:19.3]} 27... Rxa8
{[%clk 0:01:01]} 28. e6 {[%clk 0:00:17]} 28... Ra1+ {[%clk 0:00:58.6]} 29. Bc1
{[%clk 0:00:16.6]} 29... Nc5 {[%clk 0:00:53]} 30. e7 {[%clk 0:00:14.6]} 30...
Nxd3 {[%clk 0:00:36.6]} 31. e8=Q {[%clk 0:00:14.1]} 31... Rxc1+ {[%clk 0:00:35]}
32. Bf1 {[%clk 0:00:14.4]} 32... Nc5 {[%clk 0:00:28.4]} 33. Qe3 {[%clk 0:00:14]}
33... Rc2 {[%clk 0:00:23]} 34. b4 {[%clk 0:00:14.1]} 34... Nd7 {[%clk
0:00:19.9]} 35. Bd3 {[%clk 0:00:14]} 35... Rb2 {[%clk 0:00:14]} 36. Bxf5+ {[%clk
0:00:14.3]} 36... Kg8 {[%clk 0:00:12.6]} 37. Bxd7 {[%clk 0:00:12.4]} 37... Kf7
{[%clk 0:00:13.5]} 38. Qe6+ {[%clk 0:00:11.8]} 38... Kf8 {[%clk 0:00:11.6]} 39.
Qe8# {[%clk 0:00:12.7]} 1-0

[Event "*** Titled Tuesday Blitz"]
[Site "Chess.com"]
[Date "2021.03.30"]
[Round "5"]
[White "WanderingPuppet"]
[Black "annamaja"]
[Result "1-0"]
[WhiteElo "2516"]
[BlackElo "2353"]
[TimeControl "180+1"]
[EndTime "10:55:27 PDT"]
[Termination "WanderingPuppet won on time"]

1. e4 {[%clk 0:03:00.8]} 1... e6 {[%clk 0:02:58.1]} 2. d4 {[%clk 0:02:59.2]}
2... d5 {[%clk 0:02:58]} 3. Nc3 {[%clk 0:02:59.1]} 3... Nf6 {[%clk 0:02:57.8]}
4. Bg5 {[%clk 0:02:57.8]} 4... dxe4 {[%clk 0:02:57.6]} 5. Nxe4 {[%clk
0:02:57.5]} 5... Nbd7 {[%clk 0:02:57.4]} 6. Nf3 {[%clk 0:02:50.8]} 6... Be7
{[%clk 0:02:55]} 7. Nxf6+ {[%clk 0:02:48.3]} 7... Bxf6 {[%clk 0:02:54.2]} 8. h4
{[%clk 0:02:24.7]} 8... c5 {[%clk 0:02:42.7]} 9. dxc5 {[%clk 0:02:14.9]} 9...
Qa5+ {[%clk 0:02:31.9]} 10. c3 {[%clk 0:02:09.4]} 10... Qxc5 {[%clk 0:02:23.5]}
11. Bd3 {[%clk 0:01:56.3]} 11... h6 {[%clk 0:02:17]} 12. Be3 {[%clk 0:01:42.8]}
12... Qc7 {[%clk 0:02:15.1]} 13. Qd2 {[%clk 0:01:29.4]} 13... a6 {[%clk
0:02:03.3]} 14. O-O-O {[%clk 0:01:27.3]} 14... Nc5 {[%clk 0:01:47]} 15. Bc2
{[%clk 0:01:23.6]} 15... b5 {[%clk 0:01:31.7]} 16. Bd4 {[%clk 0:01:14.3]} 16...
Nd7 {[%clk 0:01:14.8]} 17. Be4 {[%clk 0:00:51.2]} 17... Bb7 {[%clk 0:01:00]} 18.
Bxb7 {[%clk 0:00:48.8]} 18... Qxb7 {[%clk 0:01:00]} 19. Bxf6 {[%clk 0:00:46.3]}
19... Nxf6 {[%clk 0:01:00.9]} 20. Qd6 {[%clk 0:00:43.2]} 20... Nd5 {[%clk
0:00:53.7]} 21. Rhe1 {[%clk 0:00:37]} 21... Rd8 {[%clk 0:00:50.4]} 22. Qc5
{[%clk 0:00:33.3]} 22... b4 {[%clk 0:00:07.7]} 23. c4 {[%clk 0:00:28.9]} 23...
Nb6 {[%clk 0:00:04.9]} 24. Rxd8+ {[%clk 0:00:26]} 24... Kxd8 {[%clk 0:00:05.8]}
25. Rd1+ {[%clk 0:00:26]} 25... Ke8 {[%clk 0:00:05.3]} 26. Ne5 {[%clk
0:00:22.8]} 26... f6 {[%clk 0:00:03.2]} 27. Nc6 {[%clk 0:00:18.5]} 27... Kf7
{[%clk 0:00:02.1]} 28. Nd8+ {[%clk 0:00:16.2]} 28... Rxd8 {[%clk 0:00:01.8]} 29.
Rxd8 {[%clk 0:00:17.1]} 29... Na4 {[%clk 0:00:01.2]} 30. Qd6 {[%clk 0:00:11.5]}
30... Qxg2 {[%clk 0:00:01.1]} 31. Qd7+ {[%clk 0:00:11.8]} 31... Kg6 {[%clk
0:00:01.6]} 32. Qxa4 {[%clk 0:00:11.2]} 1-0